bitfinex/quotes_ETHUSD_20250813
["timestamp","ask_amount","ask_price","bid_price","bid_amount"]
[1755056121841,0.094,4632.6,4632.5,3.453]
[1755056122040,0.094,4632.6,4632.5,0.108]
[1755056122209,0.094,4632.6,4632.5,3.452]
[1755056122210,0.5445,4632.6,4632.5,3.452]
[1755056122524,0.5445,4632.6,4632.5,0.108]
[1755056122726,0.5445,4632.6,4632.5,3.452]
[1755056122969,0.094,4632.6,4632.5,3.452]
[1755056123227,0.094,4632.9,4632.5,3.452]
[1755056123700,0.094,4632.9,4632.8,0.108]
[1755056124104,0.4505,4633.4,4632.8,0.108]
[1755056124306,0.108,4633.8,4632.9,3.343]
[1755056124505,1.2445,4633.9,4632.9,3.343]
[1755056124705,0.4505,4633.9,4633.6,0.108]
[1755056124937,0.4505,4633.9,4633.7,3.343]
[1755056125091,0.094,4633.8,4633.7,3.343]
[1755056125294,0.4505,4633.9,4633.7,8.518]
[1755056125499,0.794,4635.0,4633.7,8.518]
[1755056125821,0.099,4634.0,4633.9,0.108]
[1755056125995,0.099,4634.0,4633.7,8.518]
[1755056126711,0.099,4634.0,4633.7,8.63379566]
[1755056126917,0.005,4634.0,4633.8,1.2952]
[1755056127112,0.094,4634.9,4633.9,0.55]
[1755056128158,0.094,4635.0,4634.4,0.55]
[1755056128324,0.094,4635.0,4634.6,0.55]
[1755056128516,0.094,4635.0,4634.4,0.646552]
[1755056128716,0.094,4635.0,4634.5,3.343]
[1755056128916,0.094,4635.0,4634.0,1.0231]
[1755056128917,0.5445,4635.0,4634.1,0.55]
[1755056129127,0.094,4635.0,4634.2,3.343]
[1755056129357,0.094,4635.0,4634.3,3.343]
[1755056129662,0.094,4635.0,4634.4,0.55]
[1755056129860,0.094,4635.0,4634.1,1.121128]
[1755056130062,0.094,4635.0,4634.2,3.343]
[1755056130763,0.094,4634.7,4634.1,0.646628]
[1755056130929,0.094,4634.7,4633.8,0.4745]
[1755056131119,0.094,4634.7,4633.9,3.343]
[1755056131451,0.094,4634.7,4634.0,0.2166]
[1755056131746,0.094,4634.6,4633.8,1.0245]
[1755056131955,0.4552,4634.5,4634.1,3.344]
[1755056132157,0.094,4634.6,4634.2,3.344]
[1755056132317,0.4552,4634.4,4634.3,3.344]
[1755056132517,1.2126,4634.4,4634.3,3.344]
[1755056132964,0.094,4633.9,4633.7,5.175]
[1755056133149,0.094,4633.5,4633.1,0.646778]
[1755056133349,0.094,4633.5,4633.2,8.517]
[1755056134327,0.094,4633.9,4633.3,1.0245]
[1755056134539,0.094,4633.9,4633.3,0.55]
[1755056134719,0.094,4633.9,4633.3,1.0245]
[1755056134919,0.094,4633.9,4633.4,3.344]
[1755056135350,0.094,4633.9,4633.5,2.689]
[1755056135557,0.094,4634.9,4633.6,0.55]
[1755056135765,0.094,4634.9,4633.8,0.55]
[1755056135961,0.094,4634.9,4633.9,3.344]
[1755056136762,0.094,4634.9,4634.8,0.108]
[1755056136964,0.094,4634.9,4634.8,3.452]
[1755056137113,0.108,4635.6,4633.7,0.4745]
[1755056137114,0.094,4634.5,4633.7,0.4745]
[1755056137318,0.094,4634.5,4633.8,3.343]
[1755056137518,0.094,4634.5,4634.4,0.108]
[1755056137748,0.094,4634.5,4634.4,3.452]
[1755056137931,0.094,4634.9,4634.4,3.452]
[1755056138126,0.094,4634.5,4634.4,3.452]
[1755056138449,0.094,4634.5,4633.5,3.1635]
[1755056138631,0.094,4634.5,4634.4,0.108]
[1755056138950,0.094,4633.9,4633.5,2.689]
[1755056139351,0.5492,4633.9,4633.8,0.108]
[1755056139531,0.5492,4633.9,4633.8,3.451]
[1755056139532,0.8514,4633.9,4633.8,3.451]
[1755056139733,0.094,4633.6,4633.5,2.689]
[1755056139945,1.3066,4633.6,4633.5,11.204]
[1755056140255,1.44806,4633.6,4633.5,11.204]
[1755056140422,1.55606,4633.6,4633.5,7.861]
[1755056140824,1.55606,4633.6,4633.5,11.206]
[1755056141355,2.10606,4633.6,4633.5,8.517]
[1755056141658,0.094,4631.3,4631.0,2.689]
[1755056141853,0.094,4631.3,4631.1,5.172]
[1755056141854,1.2126,4631.2,4631.1,5.172]
[1755056142644,0.094,4631.3,4631.1,8.52]
[1755056142854,0.094,4631.3,4631.2,3.456]
[1755056143932,0.46173077,4635.2,4631.2,3.456]
[1755056143933,0.108,4632.4,4631.2,3.9305]
[1755056144146,0.108,4632.7,4631.3,0.55]
[1755056144334,0.094,4632.1,4631.3,1.0245]
[1755056144521,0.5632,4633.0,4632.4,0.108]
[1755056144727,0.094,4632.6,4632.5,3.348]
[1755056144931,0.094,4632.6,4632.5,3.456]
[1755056145940,0.094,4632.6,4632.5,0.108]
[1755056146144,0.094,4632.6,4632.5,3.456]
[1755056146472,0.094,4632.1,4631.5,0.64701]
[1755056146631,0.094,4632.1,4631.6,3.348]
[1755056146827,0.094,4632.4,4632.0,0.108]
[1755056147080,0.094,4632.4,4632.1,3.348]
[1755056147228,0.5632,4632.9,4632.1,3.348]
[1755056147229,0.094,4632.5,4632.1,3.348]
[1755056147424,0.094,4632.5,4632.1,3.8225]
[1755056147679,0.094,4632.5,4632.4,0.108]
[1755056147829,0.094,4632.5,4632.4,3.455]
[1755056148640,0.094,4632.5,4632.4,0.108]
[1755056148867,0.094,4632.5,4632.4,3.456]
[1755056150257,0.094,4632.5,4632.4,3.9305]
[1755056150570,0.094,4632.5,4632.4,3.456]
[1755056150975,0.094,4632.5,4632.4,3.453]
[1755056151155,0.094,4632.5,4632.4,0.108]
[1755056151479,0.094,4632.5,4632.4,3.453]
[1755056151836,0.094,4632.2,4631.1,5.9439]
[1755056152152,0.094,4631.8,4631.3,0.55]
[1755056152539,0.094,4631.8,4631.1,5.172]
[1755056152540,0.094,4631.8,4631.7,0.108]
[1755056153093,0.5492,4631.8,4631.7,0.108]
[1755056153290,0.5492,4631.8,4631.7,3.345]
[1755056153291,1.3066,4631.8,4631.7,3.345]
[1755056153497,0.094,4631.8,4631.7,3.345]
[1755056153864,0.4552,4633.0,4631.7,3.345]
[1755056154193,0.094,4632.2,4631.7,3.8195]
[1755056154359,0.4552,4633.5,4631.8,1.2464]
[1755056154566,0.094,4631.9,4631.7,3.345]
[1755056154767,0.094,4632.2,4631.8,3.344]
[1755056154959,0.094,4631.9,4631.8,3.344]
[1755056155162,1.2126,4633.4,4631.8,4.5904]
[1755056155396,0.094,4632.5,4631.8,4.5904]
[1755056155575,1.2126,4633.4,4631.8,4.5904]
[1755056155576,1.2126,4633.4,4631.9,1.0245]
[1755056155895,0.094,4632.4,4631.9,1.0245]
[1755056156070,0.094,4632.4,4632.0,1.2464]
[1755056156587,0.094,4632.7,4632.1,0.4745]
[1755056156784,0.094,4632.4,4632.1,0.4745]
[1755056156980,0.094,4632.4,4631.9,0.55]
[1755056156981,0.094,4632.4,4631.1,5.6465]
[1755056157164,0.094,4632.4,4631.5,0.4745]
[1755056157368,0.094,4632.4,4631.6,0.55]
[1755056157568,0.094,4632.4,4631.7,3.35]
[1755056157794,0.094,4632.3,4631.7,3.35]
[1755056158283,0.094,4632.3,4631.8,0.55]
[1755056158464,0.094,4632.3,4631.6,0.55]
[1755056158670,0.094,4632.3,4631.8,0.55]
[1755056158896,0.094,4632.7,4631.9,3.349]
[1755056159100,0.094,4632.3,4631.6,0.001]
[1755056159486,0.094,4632.3,4631.7,3.349]
[1755056160783,1.3217,4632.6,4631.7,3.349]
[1755056161024,0.094,4632.3,4631.7,3.349]
[1755056161218,0.094,4632.3,4631.7,3.46479566]
[1755056161386,0.094,4632.3,4631.7,3.349]
[1755056161709,0.094,4631.7,4631.6,0.001]
[1755056161891,0.5333,4631.7,4631.6,3.35]
[1755056162403,0.094,4631.7,4631.6,3.35]
[1755056162907,0.094,4632.2,4631.6,3.35]
[1755056163108,0.7884,4632.8,4631.6,3.8214]
[1755056163109,0.094,4632.1,4631.6,3.8214]
[1755056163279,0.094,4632.1,4631.6,3.35]
[1755056163479,0.094,4632.1,4632.0,0.108]
[1755056163881,0.094,4632.1,4632.0,0.5794]
[1755056165395,0.094,4632.1,4632.0,1.3531]
[1755056165709,0.094,4633.2,4632.3,0.55]
[1755056165878,0.094,4633.2,4632.5,0.55]
[1755056166084,0.094,4632.8,4632.5,0.55]
[1755056166284,0.094,4633.4,4632.7,0.55]
[1755056166486,0.002,4634.0,4633.4,0.55]
[1755056166699,0.094,4633.7,4633.5,3.349]
[1755056167103,0.094,4633.7,4633.6,0.5794]
[1755056167411,0.002,4634.0,4633.7,0.55]
[1755056167711,0.002,4634.0,4633.7,1.7951]
[1755056167914,0.002,4634.0,4633.9,0.658]
[1755056168113,0.002,4634.0,4633.9,4.007]
[1755056170517,0.002,4634.0,4633.9,4.4784]
[1755056170682,0.002,4634.0,4633.9,4.007]
[1755056170887,0.002,4634.0,4633.9,0.108]
[1755056171120,0.4413,4634.0,4633.9,3.455]
[1755056171419,0.4413,4634.0,4633.9,3.454]
[1755056171590,1.2297,4634.0,4633.9,3.454]
[1755056171790,0.4413,4634.0,4633.9,3.454]
[1755056172318,0.002,4634.0,4633.9,0.108]
[1755056172496,0.4413,4634.0,4633.9,3.454]
[1755056172695,0.002,4634.0,4633.9,4.3674]
[1755056172911,0.002,4634.0,4633.9,3.896]
[1755056173620,0.002,4634.0,4633.9,3.352]
[1755056174316,0.002,4634.0,4633.9,5.172]
[1755056174515,1.2297,4634.0,4633.9,5.172]
[1755056174716,1.2297,4634.0,4633.9,8.524]
[1755056175087,0.002,4634.0,4633.9,8.524]
[1755056175482,1.2297,4634.0,4633.9,8.524]
[1755056176415,1.2297,4634.0,4633.9,5.172]
[1755056176734,1.2297,4634.0,4633.9,8.523]
[1755056177635,0.002,4634.0,4633.9,8.523]
[1755056177839,0.002,4634.0,4633.9,5.172]
[1755056178007,0.002,4634.0,4633.9,8.523]
[1755056178736,1.2297,4634.0,4633.9,8.522]
[1755056179040,0.002,4634.0,4633.9,8.522]
[1755056179609,0.002,4634.0,4633.9,8.9934]
[1755056180310,0.002,4634.0,4633.9,9.5434]
[1755056180510,0.002,4634.0,4633.9,10.3171]
[1755056181133,0.096,4634.0,4633.9,9.5434]
[1755056181708,0.096,4634.0,4633.9,8.521]
[1755056181931,1.3237,4634.0,4633.9,5.172]
[1755056182137,1.3237,4634.0,4633.9,8.52]
[1755056182458,0.096,4634.0,4633.9,8.522]
[1755056182608,0.096,4634.0,4633.9,9.6514]
[1755056183014,0.096,4634.0,4633.9,10.4251]
[1755056183454,0.096,4634.0,4633.9,9.6514]
[1755056183651,0.096,4634.0,4633.9,9.181]
[1755056184160,0.096,4634.0,4633.9,5.2541]
[1755056184565,0.096,4634.0,4633.9,4.4804]
[1755056185063,0.096,4634.0,4633.9,0.108]
[1755056185261,0.096,4634.0,4633.9,3.458]
[1755056185427,0.096,4634.0,4633.9,11.319]
[1755056186162,0.096,4634.0,4633.9,7.969]
[1755056186564,0.096,4634.0,4633.9,11.318]
[1755056186869,0.096,4634.0,4633.9,7.969]
[1755056187079,0.096,4634.0,4633.9,11.32]
[1755056187577,0.096,4634.0,4633.9,7.969]
[1755056187762,1.3237,4634.0,4633.9,11.319]
[1755056188677,0.096,4634.0,4633.9,11.319]
[1755056188878,1.3237,4634.0,4633.9,11.319]
[1755056189043,1.3237,4634.0,4633.9,7.969]
[1755056189244,1.3237,4634.0,4633.9,11.211]
[1755056189550,0.096,4634.0,4633.9,7.969]
[1755056189771,0.096,4634.0,4633.9,11.318]
[1755056192245,0.096,4634.0,4633.9,7.969]
[1755056192468,0.096,4634.0,4633.9,11.318]
[1755056192855,0.096,4634.0,4633.9,7.969]
[1755056193181,0.096,4634.0,4633.9,11.317]
[1755056193881,0.096,4634.0,4633.9,13.0611]
[1755056194997,0.096,4634.0,4633.9,11.867]
[1755056195452,0.002,4634.0,4633.9,11.867]
[1755056195652,0.002,4634.0,4633.9,11.866]
[1755056195653,0.096,4634.0,4633.9,11.866]
[1755056195850,0.096,4634.0,4633.9,8.519]
[1755056196066,0.096,4634.0,4633.9,11.866]
[1755056196267,0.096,4634.0,4633.9,11.316]
[1755056196856,0.096,4634.0,4633.9,7.969]
[1755056197291,0.002,4634.0,4633.9,11.315]
[1755056197558,0.002,4634.0,4633.9,11.865]
[1755056197793,0.002,4634.0,4633.9,13.0591]
[1755056198697,0.002,4634.0,4633.9,12.3091]
[1755056199264,0.096,4634.0,4633.9,12.3091]
[1755056199591,0.096,4634.0,4633.9,11.865]
[1755056199990,0.002,4634.0,4633.9,11.865]
[1755056200201,0.002,4634.0,4633.9,13.0591]
[1755056200408,0.002,4634.0,4633.9,10.3701]
[1755056200993,0.002,4634.0,4633.9,9.176]
[1755056201172,0.002,4634.0,4633.9,9.177]
[1755056201912,0.002,4634.0,4633.9,9.176]
[1755056202713,0.002,4634.0,4633.9,5.83]
[1755056203009,0.002,4634.0,4633.9,9.176]
[1755056204370,0.002,4634.0,4633.9,5.28]
[1755056204866,0.002,4634.0,4633.9,9.174]
[1755056205296,0.096,4634.0,4633.9,11.863]
[1755056205474,0.002,4634.0,4633.9,11.863]
[1755056206008,0.094,4634.3,4633.9,11.863]
[1755056206009,0.094,4634.3,4634.0,0.55]
[1755056206218,0.094,4634.3,4634.2,0.658]
[1755056207303,0.094,4634.3,4634.2,4.001]
[1755056208209,0.094,4634.3,4634.2,0.658]
[1755056208407,0.096,4634.5,4634.2,0.658]
[1755056208706,0.096,4634.5,4634.3,3.342]
[1755056209370,0.096,4634.5,4634.4,0.55]
[1755056210574,0.096,4634.5,4634.4,3.891]
[1755056211174,0.096,4634.5,4634.4,3.89]
[1755056212576,0.094,4634.8,4634.5,0.55]
[1755056212776,0.002,4635.0,4634.7,0.55]
[1755056213076,0.4444,4637.2,4635.0,0.55]
[1755056213276,0.4444,4637.2,4635.7,0.55]
[1755056213492,0.4444,4637.2,4637.1,0.108]
[1755056213788,1.4052,4637.2,4637.1,3.451]
[1755056213991,0.094,4637.2,4637.1,3.451]
[1755056214175,1.286,4637.2,4637.1,0.108]
[1755056214376,1.286,4637.2,4637.1,3.452]
[1755056214785,1.286,4637.2,4637.1,3.344]
[1755056215011,0.094,4635.9,4635.3,0.55]
[1755056215221,0.094,4635.9,4634.8,0.4441]
[1755056215384,0.094,4635.9,4635.8,0.108]
[1755056216116,0.094,4635.9,4635.8,3.454]
[1755056216817,0.094,4635.9,4635.8,3.453]
[1755056216985,0.094,4635.9,4635.8,3.452]
[1755056217615,1.286,4635.9,4635.8,5.278]
[1755056217824,1.4146,4635.9,4635.8,8.514]
[1755056217990,1.4146,4635.9,4635.8,5.17]
[1755056218312,1.5226,4635.9,4635.8,5.17]
[1755056218485,1.5226,4635.9,4635.8,8.514]
[1755056218803,1.5226,4635.9,4635.8,5.17]
[1755056219113,1.5226,4635.9,4635.8,8.514]
[1755056219515,1.5226,4635.9,4635.8,5.17]
[1755056219703,1.5226,4635.9,4635.8,8.515]
[1755056221311,1.4286,4635.9,4635.8,8.515]
[1755056221519,1.5226,4635.9,4635.8,8.515]
[1755056222080,1.4286,4635.9,4635.8,8.515]
[1755056222522,1.5226,4635.9,4635.8,8.515]
[1755056222708,1.394,4635.9,4635.8,8.515]
[1755056222907,1.3,4635.9,4635.8,8.515]
[1755056223501,1.394,4635.9,4635.8,8.515]
[1755056224593,1.394,4635.9,4635.8,5.17]
[1755056224792,1.5334,4635.9,4635.8,8.514]
[1755056226500,1.5334,4635.9,4635.4,2.689]
[1755056226501,0.094,4635.5,4635.4,2.689]
[1755056226688,1.2708,4635.5,4635.4,11.202]
[1755056228591,1.2708,4635.5,4635.4,7.859]
[1755056228813,1.39788,4635.5,4635.4,11.203]
[1755056229019,1.1788,4635.9,4635.4,11.203]
[1755056229212,0.094,4635.5,4635.4,11.203]
[1755056229419,0.094,4635.5,4635.4,7.859]
[1755056229607,0.094,4635.5,4635.4,11.202]
[1755056230603,1.2708,4635.5,4635.4,7.859]
[1755056230828,1.39788,4635.5,4635.4,11.201]
[1755056231203,1.39788,4635.5,4635.4,7.859]
[1755056231606,1.39788,4635.5,4635.4,11.201]
[1755056232130,1.39788,4635.5,4635.4,7.859]
[1755056232428,1.39788,4635.5,4635.4,11.201]
[1755056232835,0.22108,4635.5,4635.4,11.201]
[1755056233019,0.094,4635.5,4635.4,11.201]
[1755056234112,0.002,4635.9,4635.4,11.201]
[1755056234435,0.002,4635.9,4635.5,1.1729]
[1755056234436,0.094,4635.6,4635.5,1.1729]
[1755056234639,0.094,4635.6,4635.5,3.343]
[1755056234802,0.094,4635.6,4635.4,7.859]
[1755056235011,0.094,4635.6,4635.5,3.343]
[1755056235231,0.094,4635.6,4635.4,7.859]
[1755056235656,0.094,4635.6,4635.5,3.343]
[1755056235839,1.2708,4635.6,4635.5,3.343]
[1755056236143,1.2708,4635.6,4635.4,7.859]
[1755056236438,1.30388,4635.5,4635.4,7.859]
[1755056236642,1.30388,4635.5,4635.4,11.202]
[1755056236940,1.41188,4635.5,4635.4,11.202]
[1755056237307,1.41188,4635.5,4635.4,7.859]
[1755056237740,1.41188,4635.5,4635.4,11.202]
[1755056238312,0.23508,4635.5,4635.4,11.202]
[1755056238510,0.108,4635.5,4635.4,11.202]
[1755056239123,0.094,4635.6,4635.4,11.202]
[1755056239321,0.094,4635.5,4635.4,11.202]
[1755056239531,0.094,4635.5,4635.4,11.9416]
[1755056239732,0.094,4635.5,4635.4,12.0496]
[1755056239933,0.094,4635.5,4635.4,12.4829]
[1755056240133,0.094,4635.5,4635.4,13.0329]
[1755056240935,0.002,4635.9,4635.4,13.0329]
[1755056241135,0.094,4635.8,4635.5,1.7229]
[1755056241333,0.094,4635.8,4635.7,0.55]
[1755056241533,0.094,4635.8,4635.7,0.658]
[1755056241762,0.094,4635.8,4635.7,3.45]
[1755056241933,0.094,4635.8,4635.7,0.108]
[1755056242348,0.094,4635.5,4635.4,7.859]
[1755056242541,0.002,4635.9,4635.4,11.6343]
[1755056242857,0.094,4635.5,4635.4,7.967]
[1755056243058,0.094,4635.5,4635.4,11.31]
[1755056243825,0.094,4635.5,4635.4,7.967]
[1755056244030,0.094,4635.5,4635.4,11.31]
[1755056244236,0.094,4635.5,4635.4,7.967]
[1755056244450,0.094,4635.5,4635.4,11.309]
[1755056245159,1.2708,4635.5,4635.4,11.201]
[1755056245669,1.40868,4635.5,4635.4,5.17]
[1755056246050,0.094,4635.5,4635.4,5.17]
[1755056246367,0.094,4635.5,4635.4,5.278]
[1755056246867,0.094,4635.5,4635.4,8.619]
[1755056247730,0.002,4635.9,4635.4,9.3586]
[1755056247933,0.094,4635.5,4635.4,8.511]
[1755056248367,0.094,4635.5,4635.4,8.619]
[1755056248751,0.094,4635.5,4635.4,5.278]
[1755056249271,0.094,4635.5,4635.4,8.62]
[1755056250856,0.094,4635.5,4635.4,8.618]
[1755056251658,0.094,4635.5,4635.4,5.17]
[1755056251659,1.2595,4635.5,4635.4,5.17]
[1755056251857,1.38565,4635.5,4635.4,5.17]
[1755056252056,1.38565,4635.5,4635.4,8.51]
[1755056252256,1.38565,4635.5,4635.4,5.17]
[1755056252437,1.38565,4635.5,4635.4,8.51]
[1755056252635,1.38565,4635.5,4635.4,5.17]
[1755056252836,1.38565,4635.5,4635.4,8.51]
[1755056253267,0.22015,4635.5,4635.4,8.51]
[1755056253456,0.5239,4635.5,4635.4,8.51]
[1755056255371,0.5239,4635.5,4635.4,5.17]
[1755056255570,1.2595,4635.5,4635.4,8.508]
[1755056255961,1.2595,4635.5,4635.4,5.17]
[1755056256372,1.2595,4635.5,4635.4,8.508]
[1755056256543,1.39645,4635.5,4635.4,5.17]
[1755056256883,1.39645,4635.5,4635.4,8.508]
[1755056257043,0.23095,4635.5,4635.4,8.508]
[1755056257246,0.094,4635.5,4635.4,8.508]
[1755056257967,0.11,4635.6,4635.4,8.508]
[1755056258143,0.094,4635.5,4635.4,8.508]
[1755056259173,0.094,4635.5,4635.4,10.1474]
[1755056259539,0.094,4635.5,4635.4,9.5974]
[1755056259744,0.094,4635.5,4635.4,8.508]
[1755056260472,0.094,4635.5,4635.4,9.5974]
[1755056262141,0.094,4635.5,4635.4,5.907304]
[1755056262341,0.002,4635.6,4635.5,0.55]
[1755056262544,0.002,4635.6,4635.5,0.9491]
[1755056263369,0.002,4635.6,4635.5,4.2931]
[1755056263578,0.002,4635.6,4635.5,0.9491]
[1755056263780,0.002,4635.6,4635.5,4.2921]
[1755056264188,0.002,4635.6,4635.5,0.9491]
[1755056264341,0.002,4635.6,4635.5,4.856]
[1755056264548,0.002,4635.6,4635.5,7.01326458]
[1755056264755,0.002,4635.6,4635.5,1.78261689]
[1755056264978,0.002,4635.6,4635.5,5.12461689]
[1755056265475,0.002,4635.6,4635.5,9.96988147]
[1755056265703,0.002,4635.6,4635.5,10.06388147]
[1755056265977,0.002,4635.6,4635.5,7.34271689]
[1755056266277,0.002,4635.6,4635.5,10.06388147]
[1755056266672,0.002,4635.6,4635.5,7.90661689]
[1755056266871,0.002,4635.6,4635.5,3.332]
[1755056267886,0.002,4635.6,4635.5,6.672]
[1755056268047,0.002,4635.6,4635.5,6.671]
[1755056269244,0.002,4635.6,4635.5,6.779]
[1755056270256,0.002,4635.6,4635.5,3.44]
[1755056270592,0.002,4635.6,4635.5,6.777]
[1755056270787,0.002,4635.6,4635.5,2.89]
[1755056271092,1.2615,4635.6,4635.5,8.059]
[1755056271267,1.38785,4635.6,4635.5,7.951]
[1755056271468,1.38785,4635.6,4635.5,11.293]
[1755056271664,1.38785,4635.6,4635.5,7.951]
[1755056271867,1.38785,4635.6,4635.5,11.199]
[1755056272068,1.2615,4635.6,4635.5,11.199]
[1755056273795,0.002,4635.6,4635.5,11.199]
[1755056274088,0.096,4635.6,4635.5,11.307]
[1755056275084,1.2615,4635.6,4635.5,7.965]
[1755056275395,1.2615,4635.6,4635.5,11.306]
[1755056275692,1.2615,4635.6,4635.5,11.198]
[1755056275897,1.2615,4635.6,4635.5,7.857]
[1755056276188,1.2615,4635.6,4635.5,11.198]
[1755056276606,1.2615,4635.6,4635.5,11.197]
[1755056276607,1.39845,4635.6,4635.5,11.197]
[1755056276773,1.50645,4635.6,4635.5,11.197]
[1755056277817,1.50645,4635.6,4635.5,7.857]
[1755056278113,1.50645,4635.6,4635.5,11.197]
[1755056279601,1.50645,4635.6,4635.5,7.857]
[1755056279915,1.50645,4635.6,4635.5,11.197]
[1755056280220,1.50645,4635.6,4635.5,11.196]
[1755056280595,1.50645,4635.6,4635.5,11.195]
[1755056280793,1.50645,4635.6,4635.5,7.857]
[1755056280997,1.50645,4635.6,4635.5,11.195]
[1755056281309,0.094,4635.1,4635.0,0.001]
[1755056281518,0.202,4635.1,4635.0,5.171]
[1755056281690,1.3669,4635.1,4635.0,8.51]
[1755056281897,1.39559,4635.1,4635.0,8.51]
[1755056282082,1.50359,4635.1,4635.0,8.51]
[1755056282282,1.3669,4635.1,4635.0,8.511]
[1755056282591,1.3669,4635.1,4635.0,8.512]
[1755056282796,0.108,4635.1,4635.0,8.512]
[1755056283008,0.202,4635.1,4635.0,8.512]
[1755056283187,0.094,4635.1,4635.0,8.512]
[1755056283389,0.094,4635.1,4635.0,8.513]
[1755056283918,0.002,4635.6,4635.0,8.513]
[1755056284319,0.002,4635.6,4635.5,0.108]
[1755056284485,0.002,4635.6,4635.5,3.451]
[1755056284688,0.002,4635.6,4635.5,0.108]
[1755056284912,0.096,4635.6,4635.5,3.451]
[1755056285215,0.002,4635.6,4635.5,0.108]
[1755056285415,0.096,4635.6,4635.5,3.343]
[1755056286411,0.002,4635.6,4635.5,3.343]
[1755056286990,0.096,4635.6,4635.5,3.343]
[1755056287288,0.002,4635.6,4635.5,3.343]
[1755056287712,0.096,4635.6,4635.5,3.343]
[1755056287915,0.002,4635.6,4635.5,3.8147]
[1755056288122,0.096,4635.6,4635.5,3.8147]
[1755056288425,0.002,4635.6,4635.5,3.8147]
[1755056288595,0.096,4635.6,4635.5,3.8147]
[1755056289117,0.096,4635.6,4635.5,0.4717]
[1755056289319,0.002,4635.6,4635.5,3.8157]
[1755056289898,0.096,4635.6,4635.5,0.4717]
[1755056290098,1.2609,4635.6,4635.5,3.8157]
[1755056290330,1.2609,4635.6,4635.5,3.8147]
[1755056290519,1.39779,4635.6,4635.0,7.859]
[1755056290723,0.094,4635.1,4635.0,7.967]
[1755056290907,1.2589,4635.1,4635.0,7.859]
[1755056291118,1.2589,4635.1,4635.0,11.849679]
[1755056291605,1.38479,4635.1,4635.0,11.202]
[1755056292643,1.38479,4635.1,4635.0,7.859]
[1755056292844,1.38479,4635.1,4635.0,11.202]
[1755056293027,0.094,4635.1,4635.0,11.202]
[1755056296813,1.2589,4635.1,4635.0,11.202]
[1755056297016,1.2589,4635.1,4635.0,11.2]
[1755056297845,1.2589,4635.1,4635.0,7.859]
[1755056298143,1.2589,4635.1,4635.0,8.50574]
[1755056298346,0.094,4635.1,4635.0,11.84574]
[1755056298904,0.094,4635.1,4635.0,9.15774]
[1755056299107,0.094,4635.1,4635.0,5.81774]
[1755056299342,0.094,4635.1,4635.0,9.15874]
[1755056299636,0.094,4635.1,4635.0,5.81774]
[1755056300205,0.094,4635.1,4635.0,9.15874]
[1755056300434,0.094,4635.1,4635.0,10.20554]
[1755056301838,0.094,4635.1,4635.0,9.26674]
[1755056302404,0.094,4635.1,4635.0,9.66584]
[1755056302840,0.094,4635.1,4635.0,10.20554]
[1755056303609,0.002,4635.6,4635.0,10.20554]
[1755056303818,0.094,4635.1,4635.0,10.09754]
[1755056304115,0.094,4635.1,4635.0,10.20554]
[1755056304618,0.094,4635.1,4635.0,9.66584]
[1755056305033,0.094,4635.1,4635.0,9.26674]
[1755056305416,0.094,4635.1,4635.0,5.92574]
[1755056305640,0.094,4635.1,4635.0,9.26474]
[1755056305842,0.094,4635.1,4635.0,5.92574]
[1755056306114,0.094,4635.1,4635.0,9.26374]
[1755056307145,0.094,4635.1,4635.0,5.92574]
[1755056307361,1.2589,4635.1,4635.0,9.15574]
[1755056310045,1.39559,4635.1,4635.0,5.81774]
[1755056310656,1.39559,4635.1,4635.0,5.171]
[1755056310812,1.39559,4635.1,4635.0,8.507]
[1755056311943,1.39559,4635.1,4635.0,5.171]
[1755056312219,1.94559,4635.1,4635.0,8.509]
[1755056312716,1.39559,4635.1,4635.0,8.509]
[1755056312917,1.50359,4635.1,4635.0,8.509]
[1755056313117,1.50359,4635.1,4635.0,5.171]
[1755056313349,1.50359,4635.1,4635.0,8.509]